Workbook

Sheet 읍면동별 세대 및 인구
A1: 여수시 읍면동별 세대 및 인구
A2: 작성기준 : 2018. 9. 30. 현재 | J2: (단위 : 세대, 명)
A3: 구 분 | B3: 세대수1) | C3: 합 계 | F3: 한국인 | I3: 외국인
C4: 계 | D4: 남 | E4: 여 | F4: 계 | G4: 남 | H4: 여 | I4: 계 | J4: 남 | K4: 여
A5: 2017년 말 | B5: 119,684 | C5: 290,528 | D5: 148,022 | E5: 142,506 | F5: 286,382 | G5: 145,122 | H5: 141,260 | I5: 4,146 | J5: 2,900 | K5: 1,246
A6: 18년 1월말 | B6: 119,743 | C6: 290,288 | D6: 147,908 | E6: 142,380 | F6: 286,154 | G6: 145,019 | H6: 141,135 | I6: 4,134 | J6: 2,889 | K6: 1,245
A7: 18년 2월말 | B7: 119,882 | C7: 289,956 | D7: 147,772 | E7: 142,184 | F7: 285,858 | G7: 144,910 | H7: 140,948 | I7: 4,098 | J7: 2,862 | K7: 1,236
A8: 18년 3월말 | B8: 119,912 | C8: 289,713 | D8: 147,654 | E8: 142,059 | F8: 285,529 | G8: 144,731 | H8: 140,798 | I8: 4,184 | J8: 2,923 | K8: 1,261
A9: 18년 4월말 | B9: 120,098 | C9: 289,644 | D9: 147,614 | E9: 142,030 | F9: 285,447 | G9: 144,682 | H9: 140,765 | I9: 4,197 | J9: 2,932 | K9: 1,265
A10: 18년 5월말 | B10: 120,213 | C10: 289,518 | D10: 147,533 | E10: 141,985 | F10: 285,317 | G10: 144,598 | H10: 140,719 | I10: 4,201 | J10: 2,935 | K10: 1,266
A11: 18년 6월말 | B11: 120,318 | C11: 289,420 | D11: 147,532 | E11: 141,888 | F11: 285,158 | G11: 144,549 | H11: 140,609 | I11: 4,262 | J11: 2,983 | K11: 1,279
A12: 18년 7월말 | B12: 120,318 | C12: 289,289 | D12: 147,506 | E12: 141,783 | F12: 284,973 | G12: 144,464 | H12: 140,509 | I12: 4,316 | J12: 3,042 | K12: 1,274
A13: 18년 8월말 | B13: 120,471 | C13: 288,920 | D13: 147,378 | E13: 141,542 | F13: 284,545 | G13: 144,271 | H13: 140,274 | I13: 4,375 | J13: 3,107 | K13: 1,268
A14: 18년 9월말 | B14: =SUM(B15:B41) -> 120,619 | C14: =D14+E14 -> 288,873 | D14: =SUM(D15:D41) -> 147,403 | E14: =SUM(E15:E41) -> 141,470 | F14: =SUM(F15:F41) -> 284,418 | G14: =SUM(G15:G41) -> 144,245 | H14: =SUM(H15:H41) -> 140,173 | I14: =J14+K14 -> 4,455 | J14: =SUM(J15:J41) -> 3,158 | K14: =SUM(K15:K41) -> 1,297
A15: 돌산읍 | B15: 6,435 | C15: =SUM(D15:E15) -> 14,385 | D15: =SUM(G15+J15) -> 7,559 | E15: =SUM(H15+K15) -> 6,826 | F15: =SUM(G15:H15) -> 13,672 | G15: 6,923 | H15: 6,749 | I15: =SUM(J15:K15) -> 713 | J15: 636 | K15: 77
A16: 소라면 | B16: 8,559 | C16: 21,157 | D16: =SUM(G16+J16) -> 10,682 | E16: =SUM(H16+K16) -> 10,475 | F16: =SUM(G16:H16) -> 21,025 | G16: 10,643 | H16: 10,382 | I16: =SUM(J16:K16) -> 132 | J16: 39 | K16: 93
A17: 율촌면 | B17: 3,278 | C17: 6,839 | D17: 3,550 | E17: 3,289 | F17: 6,682 | G17: 3,438 | H17: 3,244 | I17: 157 | J17: 112 | K17: 45
A18: 화양면 | B18: 3,507 | C18: 6,935 | D18: 3,654 | E18: 3,281 | F18: 6,711 | G18: 3,471 | H18: 3,240 | I18: 224 | J18: 183 | K18: 41
A19: 남면 | B19: 1,720 | C19: 3,175 | D19: 1,658 | E19: 1,517 | F19: 3,066 | G19: 1,561 | H19: 1,505 | I19: 109 | J19: 97 | K19: 12
A20: 화정면 | B20: 1,279 | C20: 2,336 | D20: 1,161 | E20: 1,175 | F20: 2,276 | G20: 1,106 | H20: 1,170 | I20: 60 | J20: 55 | K20: 5
A21: 삼산면 | B21: 1,174 | C21: 2,218 | D21: 1,250 | E21: 968 | F21: 2,127 | G21: 1,169 | H21: 958 | I21: 91 | J21: 81 | K21: 10
A22: 동문동 | B22: 2,270 | C22: 4,271 | D22: 2,177 | E22: 2,094 | F22: 4,213 | G22: 2,139 | H22: 2,074 | I22: 58 | J22: 38 | K22: 20
A23: 한려동 | B23: 1,637 | C23: 3,155 | D23: 1,598 | E23: 1,557 | F23: 3,124 | G23: 1,586 | H23: 1,538 | I23: 31 | J23: 12 | K23: 19
A24: 중앙동 | B24: 2,432 | C24: 5,030 | D24: 2,507 | E24: 2,523 | F24: 4,928 | G24: 2,437 | H24: 2,491 | I24: 102 | J24: 70 | K24: 32
A25: 충무동 | B25: 2,272 | C25: 4,401 | D25: 2,278 | E25: 2,123 | F25: 4,355 | G25: 2,249 | H25: 2,106 | I25: 46 | J25: 29 | K25: 17
A26: 광림동 | B26: 3,253 | C26: 6,721 | D26: 3,469 | E26: 3,252 | F26: 6,668 | G26: 3,455 | H26: 3,213 | I26: 53 | J26: 14 | K26: 39
A27: 서강동 | B27: 1,898 | C27: 3,982 | D27: 2,003 | E27: 1,979 | F27: 3,949 | G27: 1,995 | H27: 1,954 | I27: 33 | J27: 8 | K27: 25
A28: 대교동 | B28: 3,102 | C28: 6,108 | D28: 3,220 | E28: 2,888 | F28: 5,819 | G28: 2,971 | H28: 2,848 | I28: 289 | J28: 249 | K28: 40
A29: 국동 | B29: 5,399 | C29: 12,902 | D29: 6,662 | E29: 6,240 | F29: 12,519 | G29: 6,330 | H29: 6,189 | I29: 383 | J29: 332 | K29: 51
A30: 월호동 | B30: 2,902 | C30: 7,738 | D30: 3,985 | E30: 3,753 | F30: 7,460 | G30: 3,729 | H30: 3,731 | I30: 278 | J30: 256 | K30: 22
A31: 여서동 | B31: 7,921 | C31: 20,586 | D31: 10,170 | E31: 10,416 | F31: 20,448 | G31: 10,103 | H31: 10,345 | I31: 138 | J31: 67 | K31: 71
A32: 문수동 | B32: 8,664 | C32: 21,029 | D32: 10,540 | E32: 10,489 | F32: 20,780 | G32: 10,383 | H32: 10,397 | I32: 249 | J32: 157 | K32: 92
A33: 미평동 | B33: 5,600 | C33: 12,660 | D33: 6,662 | E33: 5,998 | F33: 12,405 | G33: 6,485 | H33: 5,920 | I33: 255 | J33: 177 | K33: 78
A34: 둔덕동 | B34: 4,016 | C34: 11,117 | D34: 5,579 | E34: 5,538 | F34: 10,996 | G34: 5,524 | H34: 5,472 | I34: 121 | J34: 55 | K34: 66
A35: 만덕동 | B35: 4,156 | C35: 10,527 | D35: 5,271 | E35: 5,256 | F35: 10,371 | G35: 5,178 | H35: 5,193 | I35: 156 | J35: 93 | K35: 63
A36: 쌍봉동 | B36: 13,167 | C36: 34,733 | D36: 17,642 | E36: 17,091 | F36: 34,533 | G36: 17,547 | H36: 16,986 | I36: 200 | J36: 95 | K36: 105
A37: 시전동 | B37: 11,381 | C37: 31,642 | D37: 15,852 | E37: 15,790 | F37: 31,424 | G37: 15,742 | H37: 15,682 | I37: 218 | J37: 110 | K37: 108
A38: 여천동 | B38: 9,750 | C38: 22,673 | D38: 11,726 | E38: 10,947 | F38: 22,510 | G38: 11,677 | H38: 10,833 | I38: 163 | J38: 49 | K38: 114
A39: 주삼동 | B39: 2,983 | C39: 8,520 | D39: 4,346 | E39: 4,174 | F39: 8,460 | G39: 4,317 | H39: 4,143 | I39: 60 | J39: 29 | K39: 31
A40: 삼일동 | B40: 1,283 | C40: 2,800 | D40: 1,566 | E40: 1,234 | F40: 2,671 | G40: 1,451 | H40: 1,220 | I40: 129 | J40: 115 | K40: 14
A41: 묘도동 | B41: 581 | C41: 1,233 | D41: 636 | E41: 597 | F41: 1,226 | G41: 636 | H41: 590 | I41: 7 | J41: 0 | K41: 7
A42: 주 : 1) 세대수에는 외국인 세대 제외

Sheet 65세이상 인구(총괄)
A1: 65세이상 인구 현황(총괄)
A2: 작성기준 : 2018. 9. 30. 현재 | D2: (단위 : 명)
A3: 구 분 | B3: 계 | C3: 남 | D3: 여 | E3: 노령화 지수
A4: 2011년말 | B4: 37,830 | C4: 15,023 | D4: 22,807 | E4: 82.0
A5: 2012년말 | B5: 39,671 | C5: 15,929 | D5: 23,742 | E5: 89.4
A6: 2013년말 | B6: 41,369 | C6: 16,775 | D6: 24,594 | E6: 96.8
A7: 2014년말 | B7: 43,225 | C7: 17,752 | D7: 25,473 | E7: 105.4
A8: 2015년말 | B8: 44,997 | C8: 18,775 | D8: 26,222 | E8: 114.3
A9: 2016년말 | B9: 46,632 | C9: 19,720 | D9: 26,912 | E9: 121.8
A10: 2017년말 | B10: 48,569 | C10: 20,703 | D10: 27,866 | E10: 130.6
A11: 2018년 1월말 | B11: =SUM(C11:D11) -> 48,627 | C11: 20,751 | D11: 27,876 | E11: =B11/37049*100 -> 131.3
A12: 2018년 2월말 | B12: 48,684 | C12: 20,804 | D12: 27,880 | E12: 131.7
A13: 2018년 3월말 | B13: 48,775 | C13: 20,840 | D13: 27,935 | E13: 132.3
A14: 2018년 4월말 | B14: 48,814 | C14: 20,847 | D14: 27,967 | E14: 132.6
A15: 2018년 5월말 | B15: 48,923 | C15: 20,913 | D15: 28,010 | E15: 133.4
A16: 2018년 6월말 | B16: 49,020 | C16: 20,958 | D16: 28,062 | E16: 134.1
A17: 2018년 7월말 | B17: 49,138 | C17: 21,001 | D17: 28,137 | E17: 134.8
A18: 2018년 8월말 | B18: 49,262 | C18: 21,076 | D18: 28,186 | E18: 135.8
A19: 2018년 9월말 | B19: =SUM(C19:D19) -> 49,383 | C19: 21,123 | D19: 28,260 | E19: =B19/36127*100 -> 136.7
A20: 자료 : 민원지적과
A21: 주 : 노령화 지수 = (65세이상인구 / 0~14세 인구) * 100
